bitfinex-derivatives/quotes_BTCF0:USTF0_20250729
["timestamp","ask_amount","ask_price","bid_price","bid_amount"]
[1753794780764,0.59450444,118910.0,118900.0,0.38106]
[1753794781261,0.59450444,118910.0,118900.0,0.74186]
[1753794781462,0.59450444,118910.0,118900.0,0.80226105]
[1753794781662,0.64110444,118910.0,118900.0,0.80226105]
[1753794782463,0.76110444,118910.0,118900.0,0.44146105]
[1753794783061,0.76110444,118910.0,118900.0,0.38106]
[1753794783258,0.76110444,118910.0,118900.0,0.44146105]
[1753794787764,0.64110444,118910.0,118900.0,0.44146105]
[1753794788465,0.64110444,118910.0,118900.0,0.80226105]
[1753794790971,0.40337904,118910.0,118900.0,0.80226105]
[1753794791161,0.64110444,118910.0,118900.0,0.74186]
[1753794791474,0.77110444,118910.0,118900.0,0.74186]
[1753794791665,0.64110444,118910.0,118900.0,0.74186]
[1753794792773,0.75110444,118910.0,118900.0,0.38106]
[1753794793172,0.64110444,118910.0,118900.0,0.38106]
[1753794793371,0.75110444,118910.0,118900.0,0.38106]
[1753794794973,0.51337904,118910.0,118900.0,0.38106]
[1753794795172,0.64110444,118910.0,118900.0,0.38106]
[1753794795483,0.64110444,118910.0,118900.0,0.74186]
[1753794795673,0.19108113,118910.0,118900.0,1.20835216]
[1753794795868,0.14564434,118910.0,118900.0,1.1477958]
[1753794796274,0.2522917,118920.0,118910.0,0.5524653]
[1753794796471,0.2522917,118920.0,118910.0,1.8260707]
[1753794796669,0.2522917,118920.0,118910.0,1.90174194]
[1753794796872,0.2943082,118930.0,118920.0,0.5524504]
[1753794797170,0.3343082,118930.0,118920.0,1.1509758]
[1753794797377,0.2943082,118930.0,118920.0,0.9132504]
[1753794797673,0.2943082,118930.0,118920.0,0.98892164]
[1753794797975,0.2943082,118930.0,118920.0,0.9132504]
[1753794798275,0.3403582,118930.0,118920.0,0.98892164]
[1753794798467,0.3403582,118930.0,118920.0,0.9132504]
[1753794798668,0.4130482,118930.0,118920.0,0.98892164]
[1753794799164,0.4351582,118930.0,118920.0,0.99292164]
[1753794799764,0.4351582,118930.0,118920.0,0.74907]
[1753794799965,0.4683282,118930.0,118920.0,0.8095205]
[1753794800372,0.4683282,118930.0,118920.0,0.74907]
[1753794802875,0.4683282,118930.0,118920.0,0.9172505]
[1753794803176,0.4683282,118930.0,118920.0,0.74907]
[1753794805279,0.22858114,118940.0,118930.0,0.3965163]
[1753794805578,0.4041318,118950.0,118940.0,0.38427]
[1753794805779,0.4395118,118950.0,118940.0,0.74507]
[1753794805970,0.7263872,118950.0,118940.0,0.74507]
[1753794806171,0.7484972,118950.0,118940.0,0.74507]
[1753794806473,0.7484972,118950.0,118940.0,0.79033741]
[1753794807269,0.7484972,118950.0,118940.0,0.74507]
[1753794808073,0.7484972,118950.0,118940.0,0.75462116]
[1753794810386,0.7484972,118950.0,118940.0,0.75562116]
[1753794814186,0.7484972,118950.0,118940.0,0.75962116]
[1753794814386,0.8684972,118950.0,118940.0,0.75962116]
[1753794815775,0.8684972,118950.0,118940.0,0.39882116]
[1753794815973,0.8684972,118950.0,118940.0,0.00617837]
[1753794816179,1.2292972,118950.0,118940.0,0.72608433]
[1753794817377,1.2292972,118950.0,118940.0,0.77603433]
[1753794817794,1.2292972,118950.0,118940.0,0.88956433]
[1753794818086,1.2292972,118950.0,118940.0,0.32085433]
[1753794818481,1.2292972,118950.0,118940.0,0.32092342]
[1753794824692,1.2292972,118950.0,118940.0,0.29577825]
[1753794825287,1.2292972,118950.0,118940.0,0.41303825]
[1753794825495,0.8661872,118950.0,118940.0,0.58119045]
[1753794825693,0.8193472,118950.0,118940.0,0.64164095]
[1753794825990,0.6993472,118950.0,118940.0,0.64189708]
[1753794826289,0.6993472,118950.0,118940.0,0.47374488]
[1753794826692,0.6993472,118950.0,118940.0,1.00269708]
[1753794827088,0.7461872,118950.0,118940.0,1.00269708]
[1753794827290,0.7461872,118950.0,118940.0,0.83454488]
[1753794827491,0.8561872,118950.0,118940.0,0.47374488]
[1753794827891,0.7461872,118950.0,118940.0,0.47374488]
[1753794828995,0.8661872,118950.0,118940.0,0.83454488]
[1753794829194,0.6993472,118950.0,118940.0,0.83454488]
[1753794829389,0.7461872,118950.0,118940.0,0.83454488]
[1753794832097,0.5084618,118950.0,118940.0,0.47374488]
[1753794832295,0.7461872,118950.0,118940.0,0.47374488]
[1753794833999,0.7461872,118950.0,118940.0,0.83454488]
[1753794834296,0.5084618,118950.0,118940.0,0.83454488]
[1753794834496,0.7461872,118950.0,118940.0,0.77409438]
[1753794834991,0.5084618,118950.0,118940.0,0.77409438]
[1753794835294,0.4951218,118950.0,118940.0,0.76038438]
[1753794835498,0.8428472,118950.0,118940.0,0.82088566]
[1753794835698,0.8428472,118950.0,118940.0,0.46008566]
[1753794836393,0.8428472,118950.0,118940.0,0.38962566]
[1753794836700,0.8428472,118950.0,118940.0,0.46008566]
[1753794837298,1.2036472,118950.0,118940.0,0.46008566]
[1753794837493,1.2036472,118950.0,118940.0,0.08708566]
[1753794837691,1.2036472,118950.0,118940.0,0.02658438]
[1753794838788,1.2036472,118950.0,118940.0,0.02665455]
[1753794839894,1.2036472,118950.0,118940.0,0.02508079]
[1753794840093,1.2036472,118950.0,118940.0,0.02691028]
[1753794842398,1.2036472,118950.0,118940.0,0.08741156]
[1753794845097,1.2036472,118950.0,118940.0,0.08558207]
[1753794845302,1.2036472,118950.0,118940.0,0.08766725]
[1753794846497,1.2036472,118950.0,118940.0,0.13649725]
[1753794846897,1.2036472,118950.0,118940.0,0.39020725]
[1753794847801,0.8428472,118950.0,118940.0,0.55835965]
[1753794848100,0.5582818,118950.0,118940.0,0.56831837]
[1753794848505,0.4482818,118950.0,118940.0,0.56831837]
[1753794848698,0.4951218,118950.0,118940.0,1.00478961]
[1753794848899,0.6051218,118950.0,118940.0,0.92911837]
[1753794849599,0.6051218,118950.0,118940.0,0.76096597]
[1753794849795,0.7328472,118950.0,118940.0,0.76096597]
[1753794849991,0.8428472,118950.0,118940.0,0.76096597]
[1753794850991,0.8428472,118950.0,118940.0,0.40016597]
[1753794852805,0.6051218,118950.0,118940.0,0.40016597]
[1753794853002,0.8428472,118950.0,118940.0,0.46069321]
[1753794853202,0.6051218,118950.0,118940.0,0.46069321]
[1753794853504,0.7328472,118950.0,118940.0,0.46069321]
[1753794854202,0.7328472,118950.0,118940.0,1.30964551]
[1753794854203,0.6051218,118950.0,118940.0,1.30964551]
[1753794854402,0.8628472,118950.0,118940.0,1.30964551]
[1753794855002,0.7328472,118950.0,118940.0,1.14149321]
[1753794855197,0.4951218,118950.0,118940.0,1.14149321]
[1753794855403,0.8428472,118950.0,118940.0,0.46069321]
[1753794855606,0.8428472,118950.0,118940.0,1.14141321]
[1753794856006,0.7328472,118950.0,118940.0,1.14141321]
[1753794856308,0.8428472,118950.0,118940.0,1.07774321]
[1753794856499,0.8428472,118950.0,118940.0,1.15093321]
[1753794857207,0.8428472,118950.0,118940.0,1.31908561]
[1753794860609,0.8428472,118950.0,118940.0,1.31948561]
[1753794861713,0.86135431,118950.0,118940.0,1.31948561]
[1753794862114,0.69767431,118950.0,118940.0,1.31948561]
[1753794862411,0.78733431,118950.0,118940.0,1.31948561]
[1753794862612,0.78733431,118950.0,118940.0,0.64108296]
[1753794862815,0.78733431,118950.0,118940.0,1.32188296]
[1753794863021,0.54960891,118950.0,118940.0,1.32188296]
[1753794863222,0.78733431,118950.0,118940.0,1.32188296]
[1753794863723,0.85673431,118950.0,118940.0,1.32188296]
[1753794864119,0.85673431,118950.0,118940.0,1.15373056]
[1753794866524,1.21753431,118950.0,118940.0,1.15317056]
[1753794867624,0.85673431,118950.0,118940.0,1.15317056]
[1753794869826,0.85673431,118950.0,118940.0,1.32132286]
[1753794870026,0.61900891,118950.0,118940.0,1.32132286]
[1753794870226,0.85673431,118950.0,118940.0,1.32132286]
[1753794870726,0.85673431,118950.0,118940.0,1.68212286]
[1753794871529,0.85673431,118950.0,118940.0,1.68188286]
[1753794871926,0.85673431,118950.0,118940.0,1.62135562]
[1753794872327,0.85673431,118950.0,118940.0,1.45320332]
[1753794872729,0.85673431,118950.0,118940.0,1.09240332]
[1753794872926,0.85673431,118950.0,118940.0,1.15294176]
[1753794873830,0.85673431,118950.0,118940.0,1.09240332]
[1753794877434,0.85673431,118950.0,118940.0,0.41240332]
[1753794877733,0.85673431,118950.0,118940.0,1.09177733]
[1753794879533,0.85673431,118950.0,118940.0,1.15232316]
[1753794883333,0.85673431,118950.0,118940.0,1.15233244]
[1753794883532,0.85673431,118950.0,118940.0,1.32048484]
[1753794884234,0.81114431,118950.0,118940.0,1.32048484]
[1753794884932,0.54960891,118950.0,118940.0,1.68128484]
[1753794885240,0.54960891,118950.0,118940.0,1.62072973]
[1753794885431,0.45994891,118950.0,118940.0,1.62072973]
[1753794885938,0.45994891,118950.0,118940.0,1.61996973]
[1753794887336,0.52881891,118950.0,118940.0,1.61996973]
[1753794889245,0.76654431,118950.0,118940.0,1.45181733]
[1753794889544,0.84038431,118950.0,118940.0,1.09101733]
[1753794889839,0.84038431,118950.0,118940.0,0.47320741]
[1753794890039,0.84038431,118950.0,118940.0,1.15200741]
[1753794890542,0.84038431,118950.0,118940.0,0.47320741]
[1753794890741,0.84038431,118950.0,118940.0,1.15236741]
[1753794892834,0.84038431,118950.0,118940.0,1.32051971]
[1753794893853,0.60265891,118950.0,118940.0,1.32051971]
[1753794894142,0.84038431,118950.0,118940.0,1.15236741]
[1753794895442,0.84038431,118950.0,118940.0,1.09181733]
[1753794895639,0.84038431,118950.0,118940.0,0.76932788]
[1753794895943,0.84038431,118950.0,118940.0,1.06399788]
[1753794896145,0.84038431,118950.0,118940.0,1.13415788]
[1753794897739,1.20118431,118950.0,118940.0,1.13415788]
[1753794900544,1.20118431,118950.0,118940.0,1.07360733]
[1753794900845,1.20118431,118950.0,118940.0,1.00344733]
[1753794901045,1.20118431,118950.0,118940.0,0.95591733]
[1753794901644,1.20118431,118950.0,118940.0,1.00344733]
[1753794901846,1.20118431,118950.0,118940.0,1.07360733]
[1753794903251,1.20118431,118950.0,118940.0,1.06889627]
[1753794904151,1.20118431,118950.0,118940.0,0.39025627]
[1753794904351,1.20118431,118950.0,118940.0,1.06785627]
[1753794905254,1.20118431,118950.0,118940.0,0.39025627]
[1753794905550,1.20118431,118950.0,118940.0,1.06777627]
[1753794906648,1.20118431,118950.0,118940.0,1.12832682]
[1753794906953,1.49830909,118950.0,118940.0,1.12832682]
[1753794907355,2.17570909,118950.0,118940.0,1.06777627]
[1753794909456,2.11295909,118950.0,118940.0,1.06777627]
[1753794909956,2.11295909,118950.0,118940.0,1.12832682]
[1753794910156,2.15796909,118950.0,118940.0,1.12832682]
[1753794910956,1.86079663,118950.0,118940.0,1.12832682]
[1753794911256,1.18339663,118950.0,118940.0,0.45080682]
[1753794911456,1.18339663,118950.0,118940.0,1.12768682]
[1753794914849,1.18339663,118950.0,118940.0,1.10760603]
[1753794917456,1.18339663,118950.0,118940.0,1.10771395]
[1753794918058,1.18339663,118950.0,118940.0,1.10782187]
[1753794919753,1.18339663,118950.0,118940.0,1.04655132]
[1753794922856,0.82259663,118950.0,118940.0,1.04655132]
[1753794923056,1.19427663,118950.0,118940.0,1.04655132]
[1753794923757,1.19427663,118950.0,118940.0,0.75298132]
[1753794923955,1.19427663,118950.0,118940.0,0.97939132]
[1753794924359,1.19427663,118950.0,118940.0,1.04810132]
[1753794924561,1.19427663,118950.0,118940.0,1.10849187]
[1753794927767,1.19427663,118950.0,118940.0,0.43249187]
[1753794927968,1.19427663,118950.0,118940.0,1.10805187]
[1753794930776,1.49144887,118950.0,118940.0,1.10805187]
[1753794934468,1.49144887,118950.0,118940.0,0.43249187]
[1753794934676,1.49144887,118950.0,118940.0,1.10805187]
[1753794939777,1.49144887,118950.0,118940.0,1.10823022]
[1753794940379,1.49144887,118950.0,118940.0,1.10830468]
[1753794941577,2.16700887,118950.0,118940.0,1.10830468]
[1753794941784,2.16700887,118950.0,118940.0,0.44992163]
[1753794942076,2.16700887,118950.0,118940.0,1.12548163]
[1753794942276,1.49144887,118950.0,118940.0,1.12548163]
[1753794942477,1.00895389,118950.0,118940.0,1.12548163]
[1753794942786,1.07988389,118950.0,118940.0,1.12548163]
[1753794942977,1.08668389,118950.0,118940.0,1.12548163]
[1753794943377,1.35410887,118950.0,118940.0,1.12548163]
[1753794943883,1.16522389,118950.0,118940.0,1.12548163]
[1753794944680,1.16522389,118950.0,118940.0,1.14560602]
[1753794946983,1.43264887,118950.0,118940.0,1.14560602]
[1753794947284,1.07184887,118950.0,118940.0,0.47004602]
[1753794947485,1.07184887,118950.0,118940.0,1.14556602]
[1753794948482,0.79762389,118950.0,118940.0,1.14556602]
[1753794948682,0.64815389,118950.0,118940.0,1.412991]
[1753794949585,0.64815389,118950.0,118940.0,1.5811433]
[1753794950480,0.64815389,118950.0,118940.0,1.31371832]
[1753794950676,0.64815389,118950.0,118940.0,1.5811433]
[1753794951187,0.64815389,118950.0,118940.0,1.14556602]
[1753794951386,0.69733389,118950.0,118940.0,1.5811434]
[1753794951886,0.69733389,118950.0,118940.0,1.9419434]
[1753794952485,0.69733389,118950.0,118940.0,1.50636602]
[1753794952683,0.76840389,118950.0,118940.0,1.14556602]
[1753794952884,0.80527389,118950.0,118940.0,1.14556602]
[1753794953385,1.07269887,118950.0,118940.0,1.14556602]
[1753794955779,1.07269887,118950.0,118940.0,1.31371842]
[1753794955989,1.07269887,118950.0,118940.0,1.14556602]
[1753794958590,1.07269887,118950.0,118940.0,1.50636602]
[1753794959084,1.07269887,118950.0,118940.0,1.67451842]
[1753794959991,1.07269887,118950.0,118940.0,1.50636602]
[1753794960789,1.07269887,118950.0,118940.0,1.14556602]
[1753794961488,1.07269887,118950.0,118940.0,1.50636602]
[1753794961890,1.07269887,118950.0,118940.0,1.67451832]
[1753794962484,0.80527389,118950.0,118940.0,1.67451832]
[1753794962886,0.64815389,118950.0,118940.0,1.67451832]
[1753794963093,0.294237,118960.0,118950.0,0.3107882]
[1753794963288,0.294237,118960.0,118950.0,1.24879467]
[1753794963594,0.51960308,118970.0,118960.0,0.534414]
[1753794963788,0.2521781,118970.0,118960.0,1.91865528]
[1753794964091,0.56878308,118970.0,118960.0,1.91865528]
[1753794964296,0.63985308,118970.0,118960.0,1.92418047]
[1753794964789,0.3724281,118970.0,118960.0,1.65675549]
[1753794966192,0.3774281,118970.0,118960.0,1.59626358]
[1753794966883,0.3804281,118970.0,118960.0,1.59626358]
[1753794967084,0.3093581,118970.0,118960.0,1.59626358]
[1753794967994,0.2601781,118970.0,118960.0,1.59626358]
[1753794969394,0.2601781,118970.0,118960.0,1.59626368]
[1753794971390,0.2601781,118970.0,118960.0,1.65675559]
[1753794974190,0.2601781,118970.0,118960.0,1.65664671]
[1753794974500,0.2601781,118970.0,118960.0,1.59626368]
[1753794975999,0.2601781,118970.0,118960.0,1.83381755]
[1753794977898,0.2601781,118970.0,118960.0,1.59626368]
[1753794978603,0.2601781,118970.0,118960.0,1.656602]
[1753794979798,0.1761198,118970.0,118960.0,1.89415587]
[1753794980098,0.1761198,118970.0,118960.0,1.83381755]
[1753794980498,0.008,118970.0,118960.0,1.92636999]
[1753794980702,0.1682079,118980.0,118970.0,0.52423]
[1753794981003,0.1682079,118980.0,118970.0,1.14270826]
[1753794981191,0.1682079,118980.0,118970.0,0.90515439]
[1753794981396,0.1682079,118980.0,118970.0,1.22390469]
[1753794981997,0.1682079,118980.0,118970.0,1.14823345]
[1753794982204,0.1712079,118980.0,118970.0,1.14823345]
[1753794982505,0.1712079,118980.0,118970.0,0.91067958]
[1753794983605,0.1712079,118980.0,118970.0,0.97094635]
[1753794984307,0.1722079,118980.0,118970.0,0.97094635]
[1753794984802,0.43937892,118980.0,118970.0,1.23811737]
[1753794987206,0.43937892,118980.0,118970.0,0.97094635]
[1753794987407,0.43937892,118980.0,118970.0,1.23811737]
[1753794989808,0.43937892,118980.0,118970.0,0.97094635]
[1753794990106,0.1722079,118980.0,118970.0,1.23811737]
[1753794991309,0.1722079,118980.0,118970.0,1.1778506]
[1753794991912,0.1722079,118980.0,118970.0,0.91067958]
[1753794992112,0.1722079,118980.0,118970.0,1.1778506]
[1753794993012,0.1722079,118980.0,118970.0,1.23812137]
[1753794993713,0.43937892,118980.0,118970.0,1.23812137]
[1753794994105,0.1722079,118980.0,118970.0,1.23812137]
[1753794994313,0.43937892,118980.0,118970.0,1.23812137]
[1753794994615,0.1722079,118980.0,118970.0,1.23812137]
[1753794994816,0.43937892,118980.0,118970.0,1.23812137]
[1753794998119,0.43937892,118980.0,118970.0,0.97095035]
[1753794998319,0.43937892,118980.0,118970.0,1.23812137]
[1753794999120,0.43937892,118980.0,118970.0,0.91067958]
[1753794999321,0.43937892,118980.0,118970.0,1.1778506]
[1753794999523,0.48810892,118980.0,118970.0,1.1778506]
[1753794999721,0.56013892,118980.0,118970.0,1.1778506]
[1753794999910,0.60966892,118980.0,118970.0,0.91067958]
[1753795000114,0.60966892,118980.0,118970.0,1.8528506]
[1753795000115,0.65475892,118980.0,118970.0,1.8528506]
[1753795000316,0.65475892,118980.0,118970.0,1.92852184]
[1753795000621,0.60966892,118980.0,118970.0,1.66135082]
[1753795000825,0.59844892,118980.0,118970.0,1.8528506]
[1753795001122,0.59844892,118980.0,118970.0,1.92852184]
[1753795001519,0.55304009,118980.0,118970.0,1.92852184]
[1753795005140,0.55304009,118980.0,118970.0,1.66135082]
[1753795005340,0.55304009,118980.0,118970.0,1.92852184]
[1753795006935,0.61231009,118980.0,118970.0,1.92852184]
[1753795007240,0.61231009,118980.0,118970.0,1.8528506]
[1753795007441,0.56231009,118980.0,118970.0,1.8528506]
[1753795007845,0.29189907,118980.0,118970.0,1.8528506]
[1753795008036,0.60907009,118980.0,118970.0,1.8528506]
[1753795008442,0.55907009,118980.0,118970.0,1.8528506]
[1753795008942,0.29189907,118980.0,118970.0,1.8528506]
[1753795009241,0.54980009,118980.0,118970.0,1.8528506]
[1753795009743,0.12679907,118980.0,118970.0,1.8528506]
[1753795010437,0.004,118980.0,118970.0,1.92852184]
[1753795010740,0.1720957,118980.0,118970.0,1.92852184]
[1753795012546,0.1720957,118980.0,118970.0,1.66135082]
[1753795012742,0.1720957,118980.0,118970.0,1.92852184]
[1753795013540,0.55515672,118980.0,118970.0,0.91067958]
[1753795013744,0.85951774,118980.0,118970.0,0.98375958]
[1753795013951,0.91878774,118980.0,118970.0,1.22427958]
[1753795014246,0.65161672,118980.0,118970.0,1.58533163]
[1753795016246,0.65161672,118980.0,118970.0,1.58544246]
[1753795016948,0.65161672,118980.0,118970.0,1.41733246]
[1753795017144,0.98337727,118980.0,118970.0,0.89122246]
[1753795017342,0.98337727,118980.0,118970.0,0.9668937]
[1753795017538,0.98337727,118980.0,118970.0,0.9185137]
[1753795017740,0.98337727,118980.0,118970.0,1.0611337]
[1753795017940,0.98337727,118980.0,118970.0,1.1335437]
[1753795018344,0.98337727,118980.0,118970.0,1.05787246]
[1753795018551,0.98337727,118980.0,118970.0,1.1335437]
[1753795019159,0.98337727,118980.0,118970.0,1.03763724]
[1753795019647,0.98337727,118980.0,118970.0,0.36275724]
[1753795019844,0.98337727,118980.0,118970.0,1.03763724]
[1753795020452,0.98337727,118980.0,118970.0,0.96522724]
[1753795020652,0.98337727,118980.0,118970.0,0.14896724]
[1753795020856,1.04744466,118980.0,118970.0,0.88429554]
[1753795021152,1.04744466,118980.0,118970.0,0.74110554]
[1753795021348,1.04744466,118980.0,118970.0,0.68065724]
[1753795023854,1.04744466,118980.0,118970.0,0.72836724]
[1753795024454,1.04744466,118980.0,118970.0,0.72840724]
[1753795025355,1.04744466,118980.0,118970.0,0.05348724]
[1753795025656,1.04744466,118980.0,118970.0,0.72836724]
[1753795025953,1.04744466,118980.0,118970.0,0.82327724]
[1753795026155,1.04744466,118980.0,118970.0,0.72836724]
[1753795026455,1.04744466,118980.0,118970.0,0.68065724]
[1753795026654,1.04744466,118980.0,118970.0,0.00577724]
[1753795026843,1.04744466,118980.0,118970.0,0.05107551]
[1753795027442,1.72236466,118980.0,118970.0,0.05107551]
[1753795029249,1.72236466,118980.0,118970.0,1e-08]
[1753795031353,0.25475,118970.0,118960.0,0.01689885]
[1753795031554,1.10759942,118970.0,118960.0,0.06460885]
[1753795032058,1.10759942,118970.0,118960.0,5e-08]
[1753795032059,1.34520885,118970.0,118960.0,5e-08]
[1753795032351,1.27571942,118970.0,118960.0,5e-08]
[1753795033062,1.28071942,118970.0,118960.0,5e-08]
[1753795034359,1.28871942,118970.0,118960.0,5e-08]
[1753795034758,1.12059942,118970.0,118960.0,5e-08]
[1753795039065,1.35820885,118970.0,118960.0,5e-08]
[1753795039563,1.12059942,118970.0,118960.0,5e-08]
[1753795040062,0.2455322,118940.0,118930.0,0.6368883]
[1753795040359,0.71788163,118940.0,118930.0,1.01597677]
[1753795041658,0.72188163,118940.0,118930.0,1.01597677]
[1753795041872,0.72188163,118940.0,118930.0,0.95655]
[1753795042361,0.72388163,118940.0,118930.0,1.02803]
[1753795043961,0.72388163,118940.0,118930.0,0.35315]
[1753795044169,0.72388163,118940.0,118920.0,0.3608]
[1753795044170,0.3001165,118930.0,118920.0,0.17125]
[1753795044360,1.15783593,118930.0,118920.0,0.35315]
[1753795044558,1.17693751,118930.0,118920.0,0.18944]
[1753795044870,0.4494406,118920.0,118910.0,1.02803]
[1753795045365,0.4039206,118920.0,118910.0,1.02803]
[1753795045764,0.5339206,118920.0,118910.0,1.02803]
[1753795045966,0.77153003,118920.0,118910.0,1.02803]
[1753795046166,0.75153003,118920.0,118910.0,1.02803]
[1753795046374,0.75553003,118920.0,118910.0,1.02803]
[1753795046868,0.75553003,118920.0,118910.0,0.35315]
[1753795047168,0.64553003,118920.0,118910.0,1.02807]
[1753795047363,0.64553003,118920.0,118910.0,1.1962648]
[1753795048069,0.76553003,118920.0,118910.0,1.02807]
[1753795048762,0.64553003,118920.0,118910.0,1.02807]
[1753795049064,0.76553003,118920.0,118910.0,1.02807]
[1753795049269,0.76853003,118920.0,118910.0,1.02807]
[1753795050174,0.64853003,118920.0,118910.0,1.02807]
[1753795051272,0.76853003,118920.0,118910.0,1.02807]
[1753795051866,0.64853003,118920.0,118910.0,1.02807]
[1753795053873,0.76853003,118920.0,118910.0,1.02807]
[1753795054861,0.81405003,118920.0,118910.0,1.02807]
[1753795056274,0.81405003,118920.0,118910.0,0.35315]
[1753795056474,0.81405003,118920.0,118910.0,1.02807]
[1753795060075,0.5764406,118920.0,118910.0,1.02807]
[1753795060374,0.81405003,118920.0,118910.0,1.02807]
[1753795062884,1.11144874,118920.0,118910.0,1.02807]
[1753795063575,0.99144874,118920.0,118910.0,1.02807]
[1753795064074,0.99144874,118920.0,118910.0,1.1962648]
[1753795064275,1.10144874,118920.0,118910.0,1.1962648]
[1753795064576,0.83394467,118920.0,118910.0,1.02807]
[1753795064873,1.10144874,118920.0,118910.0,1.02807]
[1753795065270,1.10144874,118920.0,118910.0,1.02803]
[1753795065777,1.10144874,118920.0,118910.0,0.35315]
[1753795065975,1.10144874,118920.0,118910.0,1.02803]
[1753795066170,1.10144874,118920.0,118910.0,0.35315]
[1753795066377,1.10144874,118920.0,118910.0,1.02803]
[1753795069475,1.10144874,118920.0,118910.0,0.95655]
[1753795069976,1.10144874,118920.0,118910.0,1.02407]
[1753795072478,0.83394467,118920.0,118910.0,1.1922648]
[1753795072869,0.72394467,118920.0,118910.0,1.2527131]
[1753795073371,0.82394467,118920.0,118910.0,1.0845183]
[1753795073676,0.72394467,118920.0,118910.0,1.0845183]
[1753795073876,0.84394467,118920.0,118910.0,1.2527131]
[1753795074572,0.72394467,118920.0,118910.0,1.2527131]
[1753795074773,0.4564406,118920.0,118910.0,1.2527131]
[1753795074971,0.69419998,118920.0,118910.0,1.2527131]
[1753795075172,0.64867998,118920.0,118910.0,1.2527131]
[1753795075973,0.76867998,118920.0,118910.0,1.2527131]
[1753795076376,0.81395998,118920.0,118910.0,1.2527131]
[1753795076577,0.81395998,118920.0,118910.0,1.0845183]
[1753795076775,0.81395998,118920.0,118910.0,1.252713]
[1753795077881,0.81395998,118920.0,118910.0,1.1922647]
[1753795078383,0.81395998,118920.0,118910.0,1.02407]
[1753795078772,0.81395998,118920.0,118910.0,1.1922648]
[1753795078972,0.5762006,118920.0,118910.0,1.25276143]
[1753795079177,0.81395998,118920.0,118910.0,1.25276143]
[1753795079474,0.69395998,118920.0,118910.0,1.25276143]
[1753795079677,0.64867998,118920.0,118910.0,1.25276143]
[1753795080074,0.74867998,118920.0,118910.0,1.25276143]
[1753795080272,0.64867998,118920.0,118910.0,1.25276143]
[1753795081282,0.77867998,118920.0,118910.0,1.25276143]
[1753795081674,0.77867998,118920.0,118910.0,1.5530648]
[1753795081874,0.76867998,118920.0,118910.0,1.5530648]
[1753795082376,0.1751806,118920.0,118910.0,1.80800906]
[1753795083076,0.1751806,118920.0,118910.0,1.13312906]
[1753795083283,0.1751806,118920.0,118910.0,1.8835203]
[1753795084180,0.1751806,118920.0,118910.0,1.80784906]
[1753795084974,0.1751806,118920.0,118910.0,1.57008968]
[1753795085185,0.1751806,118920.0,118910.0,1.57115742]
[1753795085383,0.1751806,118920.0,118910.0,1.8089168]
[1753795086179,0.1751806,118920.0,118910.0,1.87780356]
[1753795089899,0.007,118920.0,118910.0,1.87780356]
[1753795090393,0.1751806,118920.0,118910.0,1.87780356]
[1753795090802,0.1751806,118920.0,118910.0,1.87857213]
[1753795091400,0.1751806,118920.0,118910.0,1.64081275]
[1753795091600,0.1751806,118920.0,118910.0,1.87857213]
[1753795091800,0.1751806,118920.0,118910.0,1.8789557]
[1753795092205,0.1751806,118920.0,118910.0,1.64119632]
[1753795092398,0.1751806,118920.0,118910.0,1.8789557]
[1753795094302,0.007,118920.0,118910.0,1.8789557]
[1753795095001,0.28,118930.0,118920.0,0.5236906]
[1753795095202,0.28,118930.0,118920.0,1.12224998]
[1753795095402,0.28,118930.0,118920.0,1.19792122]
[1753795095793,0.28,118930.0,118920.0,1.2001411]
[1753795096102,0.283,118930.0,118920.0,1.2001411]
[1753795096306,0.287,118930.0,118920.0,1.2001411]
[1753795096901,0.287,118930.0,118920.0,1.12446986]
[1753795097503,0.287,118930.0,118920.0,1.19995683]
[1753795097804,0.007,118930.0,118920.0,1.19773695]
[1753795098001,0.007,118930.0,118920.0,1.2001544]
[1753795098210,0.287,118930.0,118920.0,1.2001544]
[1753795098500,0.287,118930.0,118920.0,1.20035197]
[1753795104113,0.53354284,118950.0,118940.0,0.5236623]
[1753795104313,0.53354284,118950.0,118940.0,1.61922885]
[1753795104513,0.53354284,118950.0,118940.0,1.62184387]
[1753795105309,0.30904824,118950.0,118940.0,1.62184387]
[1753795105512,0.30904824,118950.0,118940.0,1.56151732]
[1753795105714,0.37933824,118950.0,118940.0,1.56151732]
[1753795105915,0.40707824,118950.0,118940.0,1.56151732]
[1753795106314,0.40707824,118950.0,118940.0,1.56140289]
[1753795106916,0.3886935,118950.0,118940.0,1.56140289]
[1753795107304,0.2121835,118950.0,118940.0,1.79916227]
[1753795107509,0.002,118950.0,118940.0,2.15996227]
[1753795108112,0.002,118950.0,118940.0,2.23544924]
[1753795108816,0.7087078,118960.0,118950.0,0.3109483]
[1753795109015,0.7087078,118960.0,118950.0,0.8844483]
[1753795109318,0.7087078,118960.0,118950.0,0.94470725]
[1753795109518,0.7087078,118960.0,118950.0,0.94732227]
[1753795110612,0.7530978,118960.0,118950.0,0.94732227]
[1753795110808,0.7987478,118960.0,118950.0,0.94732227]
[1753795112520,0.8007478,118960.0,118950.0,0.94732227]
[1753795118829,1.06802699,118960.0,118950.0,1.21460146]
[1753795120126,0.8007478,118960.0,118950.0,0.96427008]
[1753795120329,0.8007478,118960.0,118950.0,1.23154927]
[1753795120528,1.06802699,118960.0,118950.0,1.23154927]
[1753795120828,1.06802699,118960.0,118950.0,0.96427008]
[1753795121029,1.06802699,118960.0,118950.0,1.23154927]
[1753795121230,0.8007478,118960.0,118950.0,1.23154927]
[1753795121432,1.06802699,118960.0,118950.0,0.96427008]
[1753795121632,1.06802699,118960.0,118950.0,1.23154927]
[1753795121835,1.06802699,118960.0,118950.0,0.96427008]
[1753795122020,0.8007478,118960.0,118950.0,1.23154927]
[1753795122224,1.06802699,118960.0,118950.0,1.23154927]
[1753795122425,1.17802699,118960.0,118950.0,0.79613178]
[1753795122621,1.17802699,118960.0,118950.0,1.10953178]
[1753795122827,1.17802699,118960.0,118950.0,0.80351178]
[1753795123028,1.44530618,118960.0,118950.0,0.69400283]
[1753795123530,0.9107478,118960.0,118950.0,0.67705502]
[1753795123730,1.17802699,118960.0,118950.0,0.67705502]
[1753795124125,1.17802699,118960.0,118950.0,0.72504502]
[1753795124933,1.14839911,118960.0,118950.0,0.81936502]
[1753795125134,1.14839911,118960.0,118950.0,0.91160502]
[1753795125734,1.14839911,118960.0,118950.0,0.96118502]
[1753795127135,0.9107478,118960.0,118950.0,0.96118502]
[1753795127337,1.14839911,118960.0,118950.0,0.96118502]
[1753795127537,1.14839911,118960.0,118950.0,1.03119502]
[1753795128037,1.14839911,118960.0,118950.0,0.96146502]
[1753795128232,1.14839911,118960.0,118950.0,0.67733502]
[1753795130039,1.14839911,118960.0,118950.0,0.72532502]
[1753795130537,1.14839911,118960.0,118950.0,0.81964502]
[1753795131241,1.14839911,118960.0,118950.0,0.88160502]
[1753795131435,1.14839911,118960.0,118950.0,0.91188502]
[1753795133742,1.14839911,118960.0,118950.0,1.03119502]
[1753795133941,0.9107478,118960.0,118950.0,1.03119502]